{"text_format":"3","workbook":"xlsx","n_sheets":4,"sheets":["Cover_Sheet","MA13_Unit_Price_Tab","CC16_Unit_Price_Tab","SP_Info_Biditem_Category"],"not_rendered":{"defined_names":12},"read":"whole","date_system":"1900"}

{"sheet":"Cover_Sheet","index":0,"n_rows":28,"n_cols":5,"rows_kept":28,"merged":[[1,0,1,4],[4,0,4,4]]}
[{"$nulls":3},"PREPARED BY:"]
["THE UNDERSIGNED CERTIFIES THAT (CONTRACTOR NAME)___________________________\nIS CURRENTLY REGISTERED WITH THE VIRGINIA STATE BOARD OF CONTRACTORS AS REQUIRED BY THE CODE OF VIRGINIA.  CERTIFICATE NUMBER _________________ WAS ISSUED ON THE ________DAY OF _____________, 20XX.  THE UNDERSIGNED FURTHER CERTIFIES THAT THE REGISTRATION FEE AND ALL RENEWAL FEES REQUIRED UNDER LAW HAVE BEEN PAID.  THE CONTRACTOR AGREES TO FURNISH ALL NECESSARY LABOR, EQUIPMENT, MATERIALS, AND ALL THINGS NECESSARY TO PERFORM THE WORK AS SET FORTH IN ACCORDANCE WITH THE PLANS AND SPECIFICATIONS. THE CONTRACTOR AGREES TO PERFORM RELATED WORK FOR THE FOLLOWING ITEMS AT THE FOLLOWING STIPULATED PRICES: (ALL PRICES INCLUDE PROVISION AND INSTALLATION)."]
[{"$nulls":3},"CHECKED BY:"]
[]
["BIDDERS SHALL PROVIDE PRICES ON BOTH PROJECTS TO BE DEEMED RESPONSIVE. UNIT PRICES SHALL BE ENTERED FOR EACH PROJECT INDIVDUIALLY ON THERE RESPECTIVE TABS"]
[]
["CategoryNum","CATEGORY TITLE","MA13 Bid","CC16 Bid","Total Bid Amount"]
["C1","GENERAL EARTH WORK",{"$f":"MA13_Unit_Price_Tab!F10","v":0},{"$f":"CC16_Unit_Price_Tab!F9","v":0},{"$f":"C8+D8","v":0}]
["C2","CONCRETE WORK",{"$f":"MA13_Unit_Price_Tab!F20","v":0},{"$f":"CC16_Unit_Price_Tab!F18","v":0},{"$f":"C9+D9","v":0}]
["C3","ASPHALT WORK",{"$f":"MA13_Unit_Price_Tab!F27","v":0},{"$f":"CC16_Unit_Price_Tab!F25","v":0},0]
["C4","STORM SEWER UTILITY WORK",{"$f":"MA13_Unit_Price_Tab!F32","v":0},{"$f":"CC16_Unit_Price_Tab!F36","v":0},0]
["C5","GUARDRAIL",{"$f":"MA13_Unit_Price_Tab!F36","v":0},{"$f":"CC16_Unit_Price_Tab!F40","v":0},0]
["C6","WATERMAIN WORK",{"$f":"MA13_Unit_Price_Tab!F40","v":0},{"$f":"CC16_Unit_Price_Tab!F50","v":0},0]
["C7","SANITARY SEWER WORK",{"$f":"MA13_Unit_Price_Tab!F44","v":0},{"$f":"CC16_Unit_Price_Tab!F54","v":0},0]
["C8","TRAFFIC SIGNAL WORK",{"$f":"MA13_Unit_Price_Tab!F48","v":0},{"$f":"CC16_Unit_Price_Tab!F59","v":0},0]
["C9","STREET LIGHTING WORK",{"$f":"MA13_Unit_Price_Tab!F61","v":0},{"$f":"CC16_Unit_Price_Tab!F68","v":0},0]
["C10","PAVEMENT MARKING AND SIGNAGE WORK",{"$f":"MA13_Unit_Price_Tab!F77","v":0},{"$f":"CC16_Unit_Price_Tab!F87","v":0},0]
["C11","LANDSCAPE AND HARDSCAPE RESTORATION WORK",{"$f":"MA13_Unit_Price_Tab!F85","v":0},{"$f":"CC16_Unit_Price_Tab!F95","v":0},0]
["C12","BUS STOP SHELTER AND FURNISHINGS",{"$f":"MA13_Unit_Price_Tab!F104","v":0},{"$f":"CC16_Unit_Price_Tab!F99","v":0},0]
["C13","EROSION AND SEDIMENT CONTROL WORK",{"$f":"MA13_Unit_Price_Tab!F108","v":0},{"$f":"CC16_Unit_Price_Tab!F103","v":0},0]
["C15","UNLISTED WORK",{"$f":"MA13_Unit_Price_Tab!F112","v":0},{"$f":"CC16_Unit_Price_Tab!F107","v":0},0]
["C16","MOT AND RE-MOBILIZATION WORK",{"$f":"MA13_Unit_Price_Tab!F116","v":0},{"$f":"CC16_Unit_Price_Tab!F111","v":0},0]
["C17","STORMWATER WORK",{"$f":"MA13_Unit_Price_Tab!F120","v":0},{"$f":"CC16_Unit_Price_Tab!F115","v":0},0]
["C18","NON COUNTY UTILITIES",{"$f":"MA13_Unit_Price_Tab!F124","v":0},{"$f":"CC16_Unit_Price_Tab!F119","v":0},0]
["PCT","PERCENTAGE LINE ITEMS",{"$f":"MA13_Unit_Price_Tab!F135","v":0},{"$f":"CC16_Unit_Price_Tab!F130","v":0},0]
[]
[null,"SUB TOTAL",{"$f":"SUM(C8:C25)","v":0},{"$f":"SUM(D8:D25)","v":0}]
["GRAND TOTAL",{"$nulls":3},{"$f":"SUM(E8:E25)","v":0}]

{"sheet":"MA13_Unit_Price_Tab","index":1,"n_rows":139,"n_cols":6,"rows_kept":139,"merged":[[1,0,1,5]]}
[{"$nulls":3},"PREPARED BY:"]
["THE UNDERSIGNED CERTIFIES THAT (CONTRACTOR NAME)___________________________\nIS CURRENTLY REGISTERED WITH THE VIRGINIA STATE BOARD OF CONTRACTORS AS REQUIRED BY THE CODE OF VIRGINIA.  CERTIFICATE NUMBER _________________ WAS ISSUED ON THE ________DAY OF _____________, 20XX.  THE UNDERSIGNED FURTHER CERTIFIES THAT THE REGISTRATION FEE AND ALL RENEWAL FEES REQUIRED UNDER LAW HAVE BEEN PAID.  THE CONTRACTOR AGREES TO FURNISH ALL NECESSARY LABOR, EQUIPMENT, MATERIALS, AND ALL THINGS NECESSARY TO PERFORM THE WORK AS SET FORTH IN ACCORDANCE WITH THE PLANS AND SPECIFICATIONS. THE CONTRACTOR AGREES TO PERFORM RELATED WORK FOR THE FOLLOWING ITEMS AT THE FOLLOWING STIPULATED PRICES: (ALL PRICES INCLUDE PROVISION AND INSTALLATION)."]
[{"$nulls":3},"CHECKED BY:"]
[]
["MASTER ITEM #","DESCRIPTION","QTY","UNIT","UNIT PRICE","TOTAL"]
["C1",{"$f":"VLOOKUP(A6,Table_BidItem_CategoryClassification[#All],2,FALSE)","v":"GENERAL EARTH WORK"}]
["MASTER ITEM #","DESCRIPTION","QTY","UNIT","UNIT PRICE","TOTAL"]
["02200-C1-00130","Aggregate, VDOT #21-A  (Compacted in Place per VDOT standards & Specs)",{"$f":"ROUNDUP((1821+2070)*0.5/27,0)","v":73},"CY",null,{"$f":"IFERROR($C8*$E8, \"\")","v":{"v":0,"d":"$0.00"}}]
["07110-C1-SP010","Hot Fluid - Applied Rubberized Asphalt Waterproofing, per plan over underground parking garage. (Waterproofing Sealant)",200,"SF",null,{"$f":"IFERROR($C9*$E9, \"\")","v":{"v":0,"d":"$0.00"}}]
[{"$nulls":4},"SUBTOTAL",{"$f":"SUBTOTAL(109,MA13_Unit_Price_Tab!$F$8:$F$9)","v":{"v":0,"d":"$0.00"}}]
[]
["C2",{"$f":"VLOOKUP(A12,Table_BidItem_CategoryClassification[#All],2,FALSE)","v":"CONCRETE WORK"}]
["MASTER ITEM #","DESCRIPTION","QTY","UNIT","UNIT PRICE","TOTAL"]
["02750-C2-00060","Concrete Curb & Gutter, Standard C-2 and C-2R (Arlington County Detail R-2.0), includes curb & gutter for aprons, ramps, etc.",{"$f":"ROUNDUP(120+22+130+128-160,0)","v":240},"LF",null,{"$f":"IFERROR($C14*$E14, \"\")","v":{"v":0,"d":"$0.00"}}]
["02611-C2-00110","Concrete Sidewalk, 4\" Thickness (Arlington County Detail R-2.0)",{"$f":"ROUNDUP((1211+333+1783+1440)/9,0)","v":530},"SY",null,{"v":0,"d":"$0.00"}]
["02611-C2-00190","CG-12 Detectable Warning Surface - Truncated Domes",{"$f":"ROUNDUP(20.54+21.56+10.35/9,0)","v":44},"SY",null,{"v":0,"d":"$0.00"}]
["02614-C2-SP010","Cast In Place Detectable Warning Surface (Color per Plan)",{"$f":"ROUNDUP((146+167)/9,0)","v":35},"SY",null,{"$f":"IFERROR($C17*$E17, \"\")","v":{"v":0,"d":"$0.00"}}]
["02750-C2-SP100","Concrete Curb & Gutter, Standard C-4 (Arlington County Detail R-2.0), includes curb & gutter for Transit Station",{"$f":"ROUNDUP(34+42+90,0)","v":166},"LF",null,{"$f":"IFERROR($C18*$E18, \"\")","v":{"v":0,"d":"$0.00"}}]
["03100-C2-SP200","10\" Thick Reinforced Rigid Concrete Road Pavement, Per Plan Detail",{"$f":"ROUNDUP(1000+1070/9,0)","v":1119},"SY",null,{"$f":"IFERROR($C19*$E19, \"\")","v":{"v":0,"d":"$0.00"}}]
[{"$nulls":4},"SUBTOTAL",{"$f":"SUBTOTAL(109,MA13_Unit_Price_Tab!$F$14:$F$19)","v":{"v":0,"d":"$0.00"}}]
[]
["C3",{"$f":"VLOOKUP(A22,Table_BidItem_CategoryClassification[#All],2,FALSE)","v":"ASPHALT WORK"}]
["MASTER ITEM #","DESCRIPTION","QTY","UNIT","UNIT\nPRICE","TOTAL"]
["02600-C3-00010","Asphalt Concrete, Planing or Milling (1/2\" to 3\" Depth)",{"$f":"ROUNDUP((324+6486+305)/9,0)","v":791},"SY",null,{"$f":"IFERROR($C24*$E24, \"\")","v":{"v":0,"d":"$0.00"}}]
["02600-C3-00030","Asphalt Concrete, Base Course (VDOT BM-25.0A)",{"$f":"ROUNDUP((438+1052+43+288)*6/9*120/2000,0)","v":73},"TON",null,{"v":0,"d":"$0.00"}]
["02600-C3-00060","Asphalt Concrete, Surface Course (VDOT SM-9.5A)",{"$f":"ROUNDUP((438+1052+43+288)*2/9*120/2000,0)","v":25},"TON",null,{"v":0,"d":"$0.00"}]
[{"$nulls":4},"SUBTOTAL",{"$f":"SUBTOTAL(109,MA13_Unit_Price_Tab!$F$24:$F$26)","v":{"v":0,"d":"$0.00"}}]
[]
["C4",{"$f":"VLOOKUP(A29,Table_BidItem_CategoryClassification[#All],2,FALSE)","v":"STORM SEWER UTILITY WORK"}]
["MASTER ITEM #","DESCRIPTION","QTY","UNIT","UNIT\nPRICE","TOTAL"]
["02505-C4-00100","CB-2A or CB-2B (throat lengths from 8'-6\" up to 16'-0\"),  In Place Up to 6' Deep, Arlington County Standards.",1,"EA",null,{"$f":"IFERROR($C31*$E31, \"\")","v":{"v":0,"d":"$0.00"}}]
[{"$nulls":4},"SUBTOTAL",{"$f":"SUBTOTAL(109,MA13_Unit_Price_Tab!$F$31:$F$31)","v":{"v":0,"d":"$0.00"}}]
[]
["C5",{"$f":"VLOOKUP(A34,Table_BidItem_CategoryClassification[#All],2,FALSE)","v":"GUARDRAIL"}]
["MASTER ITEM #","DESCRIPTION","QTY","UNIT","UNIT\nPRICE","TOTAL"]
[{"$nulls":4},"SUBTOTAL",{"v":0,"d":"$0.00"}]
[]
["C6",{"$f":"VLOOKUP(A38,Table_BidItem_CategoryClassification[#All],2,FALSE)","v":"WATERMAIN WORK"}]
["MASTER ITEM #","DESCRIPTION","QTY","UNIT","UNIT\nPRICE","TOTAL"]
[{"$nulls":4},"SUBTOTAL",{"v":0,"d":"$0.00"}]
[]
["C7",{"$f":"VLOOKUP(A42,Table_BidItem_CategoryClassification[#All],2,FALSE)","v":"SANITARY SEWER WORK"}]
["MASTER ITEM #","DESCRIPTION","QTY","UNIT","UNIT\nPRICE","TOTAL"]
[{"$nulls":4},"SUBTOTAL",{"v":0,"d":"$0.00"}]
[]
["C8",{"$f":"VLOOKUP(A46,Table_BidItem_CategoryClassification[#All],2,FALSE)","v":"TRAFFIC SIGNAL WORK"}]
["MASTER ITEM #","DESCRIPTION","QTY","UNIT","UNIT\nPRICE","TOTAL"]
[{"$nulls":4},"SUBTOTAL",{"v":0,"d":"$0.00"}]
[]
["C9",{"$f":"VLOOKUP(A50,Table_BidItem_CategoryClassification[#All],2,FALSE)","v":"STREET LIGHTING WORK"}]
["MASTER ITEM #","DESCRIPTION","QTY","UNIT","UNIT\nPRICE","TOTAL"]
["14030-C9-00040","Furnish and Install 2 Inch Sch 40 PVC Conduit in Trench (Detail 14030-01)",{"$f":"ROUNDUP(34+142+28+43*4+88*4+184*4+64*4,0)","v":1720},"LF",null,{"$f":"IFERROR($C52*$E52, \"\")","v":{"v":0,"d":"$0.00"}}]
["14040-C9-00170","Furnish and Install Junction Box and Lid SMALL (Detail 14040-01)",3,"EA",null,{"v":0,"d":"$0.00"}]
["14040-C9-00220","Enter Existing Junction Box",3,"EA",null,{"v":0,"d":"$0.00"}]
["14050-C9-00260","Furnish & Install # 6 THHN Copper Cable",{"$f":"ROUNDUP(34+142+28,0)","v":204},"LF",null,{"v":0,"d":"$0.00"}]
["14060-C9-00290","Install Streetlight Pole Foundation Type F-1 (Detail 14060-01)",2,"EA",null,{"v":0,"d":"$0.00"}]
["14100-C9-00630","Furnish and Install Meter Pan, Pedestal, Control Box and Components (Detail 14100-01)",2,"EA",null,{"v":0,"d":"$0.00"}]
["14112-C9-00920","Decorative Post-Top Aluminum Streetlight Pole with Double Post Top Luminaires per Arlington Lighting Standard 14112-02",2,"EA",null,{"v":0,"d":"$0.00"}]
["13161-C9-SP010","Furnish and Install Junction Box and Lid LARGE (Detail 61-04 Type 4)",2,"EA",null,{"$f":"IFERROR($C59*$E59, \"\")","v":{"v":0,"d":"$0.00"}}]
["13161-C9-SP020","Furnish and Install Junction Box and Lid LARGE (Detail 61-04 Type 5)",2,"EA",null,{"$f":"IFERROR($C60*$E60, \"\")","v":{"v":0,"d":"$0.00"}}]
[{"$nulls":4},"SUBTOTAL",{"$f":"SUBTOTAL(109,MA13_Unit_Price_Tab!$F$52:$F$60)","v":{"v":0,"d":"$0.00"}}]
[]
["C10",{"$f":"VLOOKUP(A63,Table_BidItem_CategoryClassification[#All],2,FALSE)","v":"PAVEMENT MARKING AND SIGNAGE WORK"}]
["MASTER ITEM #","DESCRIPTION","QTY","UNIT","UNIT\nPRICE","TOTAL"]
["02900-C10-00050","Twenty Four (24) Inch Transverse Markings, Note: Used For Continental (Ladder) Crosswalk",213,"LF",null,{"$f":"IFERROR($C65*$E65, \"\")","v":{"v":0,"d":"$0.00"}}]
["02900-C10-00060","Yield Line Markings (Twenty Four (24) Inch Triangle/Twelve (12) Inch Spacing), Note: LF is Width of Lane for Units",{"$f":"26+17","v":43},"LF",null,{"v":0,"d":"$0.00"}]
["02900-C10-00070","Four (4) Inch Longitudinal Solid Line",{"$f":"ROUNDUP(88+61+29+27+79+80+78+78,0)","v":520},"LF",null,{"v":0,"d":"$0.00"}]
["02900-C10-00120","Six (6) Inch Longitudinal Solid Line",{"$f":"ROUNDUP(10+10+10+10+10+81+380+84+91+720,-1)","v":1410},"LF",null,{"v":0,"d":"$0.00"}]
["02900-C10-00230","Eight (8) Foot Letters, Note: 'Turn Only' (for example)",{"$f":"6*7","v":42},"EA",null,{"v":0,"d":"$0.00"}]
["02900-C10-00240","Single Arrows",2,"EA",null,{"v":0,"d":"$0.00"}]
["02900-C10-00350","Colorized Bike Lane Coatings (per Specification 02900)",{"$f":"ROUNDUP(351/9,-1)","v":40},"SY",null,{"v":0,"d":"$0.00"}]
["02619-C10-00410","Traffic Control Sign (Typical Stop, Yield, No Parking, Speed Limit, or Similar)",8,"EA",null,{"v":0,"d":"$0.00"}]
["02619-C10-00440","Traffic Control Sign (Typical Stop, Yield, No Parking, Speed Limit, or Similar), Mount Sign to Light or Utility Pole",1,"EA",null,{"v":0,"d":"$0.00"}]
["02619-C10-SP010","Removal of Existing Sign and Post",13,"EA",null,{"$f":"IFERROR($C74*$E74, \"\")","v":{"v":0,"d":"$0.00"}}]
["02900-C10-SP100","Colorized Transit Lane Coatings (per Specification 02900)",{"$f":"ROUNDUP(2945/9,-1)","v":330},"SY",null,{"$f":"IFERROR($C75*$E75, \"\")","v":{"v":0,"d":"$0.00"}}]
["13183-C10-SP200","Furinish and Install Rectangular Rapid Flashing Beacon with Foundation, per 72-01 detail ",2,"EA",null,{"$f":"IFERROR($C76*$E76, \"\")","v":{"v":0,"d":"$0.00"}}]
[{"$nulls":4},"SUBTOTAL",{"$f":"SUBTOTAL(109,MA13_Unit_Price_Tab!$F$65:$F$76)","v":{"v":0,"d":"$0.00"}}]
[]
["C11",{"$f":"VLOOKUP(A79,Table_BidItem_CategoryClassification[#All],2,FALSE)","v":"LANDSCAPE AND HARDSCAPE RESTORATION WORK"}]
["MASTER ITEM #","DESCRIPTION","QTY","UNIT","UNIT\nPRICE","TOTAL"]
["02801-C11-00040","Shredded hardwood mulch; Aged 6 months minimum - Free of Trash & Debris",{"$f":"ROUNDUP(161*0.5/27,0)","v":3},"CY",null,{"$f":"IFERROR($C81*$E81, \"\")","v":{"v":0,"d":"$0.00"}}]
["02801-C11-00060","Sod, Tall Fescue/Bluegrass Mixture",{"$f":"ROUNDUP(555/9,0)","v":62},"SY",null,{"v":0,"d":"$0.00"}]
["02800-C11-00500","Tree/Stump Removal - Class A. Remove and Dispose, Up to 6\" DBH to 12\" DBH (Diameter at Breast Height)",6,"EA",null,{"v":0,"d":"$0.00"}]
["02800-C11-00100","Brick Pavers, Including Concrete Base (Arlington County Detail R-2.1)",{"$f":"ROUNDUP((33+47+220)/9,0)","v":34},"SY",null,{"v":0,"d":"$0.00"}]
[{"$nulls":4},"SUBTOTAL",{"$f":"SUBTOTAL(109,MA13_Unit_Price_Tab!$F$81:$F$84)","v":{"v":0,"d":"$0.00"}}]
[]
["C12",{"$f":"VLOOKUP(A87,Table_BidItem_CategoryClassification[#All],2,FALSE)","v":"BUS STOP SHELTER AND FURNISHINGS"}]
["MASTER ITEM #","DESCRIPTION","QTY","UNIT","UNIT\nPRICE","TOTAL"]
["10530-C12-00010","Bus Shelter Pad (Detail R-2.10)",{"$f":"ROUNDUP((256+327)/9,0)","v":65},"SY",null,{"$f":"IFERROR($C89*$E89, \"\")","v":{"v":0,"d":"$0.00"}}]
["10530-C12-00100","Install 6' Free-standing Bench",4,"EA",null,{"v":0,"d":"$0.00"}]
["10530-C12-00130","Install Bus Shelter Litter Receptacle",2,"EA",null,{"v":0,"d":"$0.00"}]
["10530-C12-00131","Install Bus Shelter Recycling Receptacle",2,"EA",null,{"v":0,"d":"$0.00"}]
["10530-C12-00185","Solar-powered LED Light Panel Kit",4,"EA",null,{"v":0,"d":"$0.00"}]
["10530-C12-SP010","Install Modified Bicycle Rack per plans",6,"EA",null,{"v":0,"d":"$0.00"}]
["10530-C12-SP020","Install 4' Free-standing Bench",6,"EA",null,{"v":0,"d":"$0.00"}]
["10530-C12-SP030","Install Bus Shelter Unit, 5' x 20' Shelter per plans",4,"EA",null,{"v":0,"d":"$0.00"}]
["10530-C12-SP040","Furinish and Install Shelter Name Box and all components to shelter",2,"EA",null,{"$f":"IFERROR($C97*$E97, \"\")","v":{"v":0,"d":"$0.00"}}]
["16020-C12-SP100","Furnish and install Electrical and Communication Station Utility System per the Approved Station Design Plan Set (including but not limited to: conduit, wiring, junction boxes, etc.)",1,"LS",null,{"v":0,"d":"$0.00"}]
["10425-C12-SP110","Furnish and Install Station Flag Sign per Aproved Station Design Plan Set",2,"EA",null,{"v":0,"d":"$0.00"}]
["10425-C12-SP120","Furinish and Install Bolt Down LCD Monitor Stanchion per Approved Station Design Plan Set",2,"EA",null,{"$f":"IFERROR($C100*$E100, \"\")","v":{"v":0,"d":"$0.00"}}]
["10425-C12-SP130","Furnish and Install LCD Monitor per Approved Station Design Plan Set",2,"EA",null,{"v":0,"d":"$0.00"}]
["10425-C12-SP140","Install Station Flag Sign Foundation, per Approved Station Design Plan Set",3,"CY",null,{"v":0,"d":"$0.00"}]
["10531-C12-SP200","Install Transit Station Rub Rail",1,"LS",null,{"v":0,"d":"$0.00"}]
[{"$nulls":4},"SUBTOTAL",{"$f":"SUBTOTAL(109,MA13_Unit_Price_Tab!$F$89:$F$103)","v":{"v":0,"d":"$0.00"}}]
[]
["C13",{"$f":"VLOOKUP(A106,Table_BidItem_CategoryClassification[#All],2,FALSE)","v":"EROSION AND SEDIMENT CONTROL WORK"}]
["MASTER ITEM #","DESCRIPTION","QTY","UNIT","UNIT\nPRICE","TOTAL"]
[{"$nulls":4},"SUBTOTAL",{"v":0,"d":"$0.00"}]
[]
["C15",{"$f":"VLOOKUP(A110,Table_BidItem_CategoryClassification[#All],2,FALSE)","v":"UNLISTED WORK"}]
["MASTER ITEM #","DESCRIPTION","QTY","UNIT","UNIT\nPRICE","TOTAL"]
[{"$nulls":4},"SUBTOTAL",{"v":0,"d":"$0.00"}]
[]
["C16",{"$f":"VLOOKUP(A114,Table_BidItem_CategoryClassification[#All],2,FALSE)","v":"MOT AND RE-MOBILIZATION WORK"}]
["MASTER ITEM #","DESCRIPTION","QTY","UNIT","UNIT\nPRICE","TOTAL"]
[{"$nulls":4},"SUBTOTAL",{"v":0,"d":"$0.00"}]
[]
["C17",{"$f":"VLOOKUP(A118,Table_BidItem_CategoryClassification[#All],2,FALSE)","v":"STORMWATER WORK"}]
["MASTER ITEM #","DESCRIPTION","QTY","UNIT","UNIT\nPRICE","TOTAL"]
[{"$nulls":4},"SUBTOTAL",{"v":0,"d":"$0.00"}]
[]
["C18",{"$f":"VLOOKUP(A122,Table_BidItem_CategoryClassification[#All],2,FALSE)","v":"NON COUNTY UTILITIES"}]
["MASTER ITEM #","DESCRIPTION","QTY","UNIT","UNIT\nPRICE","TOTAL"]
[{"$nulls":4},"SUBTOTAL",{"v":0,"d":"$0.00"}]
[]
[]
[{"$nulls":4}," CONTRACT TOTAL (EXCLUDING PERCENTAGE ITEMS)",{"$f":"SUMIF(E:E,\"SUBTOTAL\",F:F)","v":{"v":0,"d":"$0.00"}}]
[]
["PCT",{"$f":"VLOOKUP(A129,Table_BidItem_CategoryClassification[#All],2,FALSE)","v":"PERCENTAGE LINE ITEMS"}]
["MASTER ITEM #","DESCRIPTION","QTY","UNIT","UNIT\nPRICE","TOTAL"]
["01500-C13-10000","Temporary Erosion and Sediment Controls",1,"LS",null,{"$f":"IFERROR($C131*$E131, \"\")","v":{"v":0,"d":"$0.00"}}]
["01000-C16-00010","Maintenance of Traffic (MOT)",1,"LS",null,{"$f":"IFERROR($C132*$E132, \"\")","v":{"v":0,"d":"$0.00"}}]
["01000-C16-00030","Mobilization and De-Mobilization",1,"LS",null,{"$f":"IFERROR($C133*$E133, \"\")","v":{"v":0,"d":"$0.00"}}]
["01500-SA-00200","SWPPP Administration",1,"LS",null,{"$f":"IFERROR($C134*$E134, \"\")","v":{"v":0,"d":"$0.00"}}]
[{"$nulls":4},"PERCENTAGE LINE ITEMS SUBTOTAL",{"$f":"SUBTOTAL(109,MA13_Unit_Price_Tab!$F$131:$F$134)","v":{"v":0,"d":"$0.00"}}]
[]
[]
[]
[{"$nulls":4},"PROJECT TOTAL :",{"$f":"$F$135+F127","v":{"v":0,"d":"$0.00"}}]

{"sheet":"CC16_Unit_Price_Tab","index":2,"n_rows":134,"n_cols":6,"rows_kept":134,"merged":[[1,0,1,5]]}
[{"$nulls":3},"PREPARED BY:"]
["THE UNDERSIGNED CERTIFIES THAT (CONTRACTOR NAME)___________________________\nIS CURRENTLY REGISTERED WITH THE VIRGINIA STATE BOARD OF CONTRACTORS AS REQUIRED BY THE CODE OF VIRGINIA.  CERTIFICATE NUMBER _________________ WAS ISSUED ON THE ________DAY OF _____________, 20XX.  THE UNDERSIGNED FURTHER CERTIFIES THAT THE REGISTRATION FEE AND ALL RENEWAL FEES REQUIRED UNDER LAW HAVE BEEN PAID.  THE CONTRACTOR AGREES TO FURNISH ALL NECESSARY LABOR, EQUIPMENT, MATERIALS, AND ALL THINGS NECESSARY TO PERFORM THE WORK AS SET FORTH IN ACCORDANCE WITH THE PLANS AND SPECIFICATIONS. THE CONTRACTOR AGREES TO PERFORM RELATED WORK FOR THE FOLLOWING ITEMS AT THE FOLLOWING STIPULATED PRICES: (ALL PRICES INCLUDE PROVISION AND INSTALLATION)."]
[{"$nulls":3},"CHECKED BY:"]
[]
["MASTER ITEM #","DESCRIPTION","QTY","UNIT","UNIT PRICE","TOTAL"]
["C1",{"$f":"VLOOKUP(A6,Table_BidItem_CategoryClassification[#All],2,FALSE)","v":"GENERAL EARTH WORK"}]
["MASTER ITEM #","DESCRIPTION","QTY","UNIT","UNIT PRICE","TOTAL"]
["02200-C1-00130","Aggregate, VDOT #21-A  (Compacted in Place per VDOT standards & Specs)",440,"CY",null,{"$f":"IFERROR($C8*$E8, \"\")","v":{"v":0,"d":"$0.00"}}]
[{"$nulls":4},"SUBTOTAL",{"$f":"SUBTOTAL(109,CC16_Unit_Price_Tab!$F$8:$F$8)","v":{"v":0,"d":"$0.00"}}]
[]
["C2",{"$f":"VLOOKUP(A11,Table_BidItem_CategoryClassification[#All],2,FALSE)","v":"CONCRETE WORK"}]
["MASTER ITEM #","DESCRIPTION","QTY","UNIT","UNIT PRICE","TOTAL"]
["02750-C2-00020","Concrete Curb, Standard Header Curb C-3 (Arlington County Detail R-2.0), includes curb for aprons, ramps, etc.",115,"LF",null,{"$f":"IFERROR($C13*$E13, \"\")","v":{"v":0,"d":"$0.00"}}]
["02750-C2-00060","Concrete Curb & Gutter, Standard C-2 and C-2R (Arlington County Detail R-2.0), includes curb & gutter for aprons, ramps, etc.",1339,"LF",null,{"$f":"IFERROR($C14*$E14, \"\")","v":{"v":0,"d":"$0.00"}}]
["02611-C2-00110","Concrete Sidewalk, 4\" Thickness (Arlington County Detail R-2.0)",1301,"SY",null,{"$f":"IFERROR($C15*$E15, \"\")","v":{"v":0,"d":"$0.00"}}]
["02611-C2-00190","CG-12 Detectable Warning Surface - Truncated Domes",18,"SY",null,{"$f":"IFERROR($C16*$E16, \"\")","v":{"v":0,"d":"$0.00"}}]
["02611-C2-00180","Concrete Driveway Entrance, 9\" Thick Commercial (Arlington County Details R-2.4A, R-2.4B, R-2.4C, R-2.4D)",188,"SY",null,{"$f":"IFERROR($C17*$E17, \"\")","v":{"v":0,"d":"$0.00"}}]
[{"$nulls":4},"SUBTOTAL",{"$f":"SUBTOTAL(109,CC16_Unit_Price_Tab!$F$13:$F$17)","v":{"v":0,"d":"$0.00"}}]
[]
["C3",{"$f":"VLOOKUP(A20,Table_BidItem_CategoryClassification[#All],2,FALSE)","v":"ASPHALT WORK"}]
["MASTER ITEM #","DESCRIPTION","QTY","UNIT","UNIT\nPRICE","TOTAL"]
["02600-C3-00010","Asphalt Concrete, Planing or Milling (1/2\" to 3\" Depth)",4344,"SY",null,{"$f":"IFERROR($C22*$E22, \"\")","v":{"v":0,"d":"$0.00"}}]
["02600-C3-00030","Asphalt Concrete, Base Course (VDOT BM-25.0A)",553,"TON",null,{"$f":"IFERROR($C23*$E23, \"\")","v":{"v":0,"d":"$0.00"}}]
["02600-C3-00060","Asphalt Concrete, Surface Course (VDOT SM-9.5A)",705,"TON",null,{"$f":"IFERROR($C24*$E24, \"\")","v":{"v":0,"d":"$0.00"}}]
[{"$nulls":4},"SUBTOTAL",{"$f":"SUBTOTAL(109,CC16_Unit_Price_Tab!$F$22:$F$24)","v":{"v":0,"d":"$0.00"}}]
[]
["C4",{"$f":"VLOOKUP(A27,Table_BidItem_CategoryClassification[#All],2,FALSE)","v":"STORM SEWER UTILITY WORK"}]
["MASTER ITEM #","DESCRIPTION","QTY","UNIT","UNIT\nPRICE","TOTAL"]
["02500-C4-00820","15\" Pipe, RCP Class IV, In Place Up to 6' Deep",196,"LF",null,{"$f":"IFERROR($C29*$E29, \"\")","v":{"v":0,"d":"$0.00"}}]
["02500-C4-00850","18\" Pipe, RCP Class IV, In Place Up to 6' Deep",83,"LF",null,{"v":0,"d":"$0.00"}]
["02500-C4-00030","Storm Manhole MH-2 (Arlington County Detail D-3.3), In Place, DEPTH   8'",2,"EA",null,{"v":0,"d":"$0.00"}]
["02505-C4-00120","PCB-2, In Place Up to 6' Deep, Arlington County Standards",5,"EA",null,{"v":0,"d":"$0.00"}]
["02505-C4-00470","Catch Basin Structure Top, Remove & Replace",1,"EA",null,{"v":0,"d":"$0.00"}]
["02505-C4-00520","Convert Catch Basin to Manhole",1,"EA",null,{"v":0,"d":"$0.00"}]
["02505-C4-00600","Storm Manhole, Catch Basin, Drop Inlet, Yard Inlet, or Grate Inlet, Remove",1,"EA",null,{"v":0,"d":"$0.00"}]
[{"$nulls":4},"SUBTOTAL",{"$f":"SUBTOTAL(109,CC16_Unit_Price_Tab!$F$29:$F$35)","v":{"v":0,"d":"$0.00"}}]
[]
["C5",{"$f":"VLOOKUP(A38,Table_BidItem_CategoryClassification[#All],2,FALSE)","v":"GUARDRAIL"}]
["MASTER ITEM #","DESCRIPTION","QTY","UNIT","UNIT\nPRICE","TOTAL"]
[{"$nulls":4},"SUBTOTAL",{"v":0,"d":"$0.00"}]
[]
["C6",{"$f":"VLOOKUP(A42,Table_BidItem_CategoryClassification[#All],2,FALSE)","v":"WATERMAIN WORK"}]
["MASTER ITEM #","DESCRIPTION","QTY","UNIT","UNIT\nPRICE","TOTAL"]
["02550-C6-00190","Connect To Existing 12-Inch Water Main",2,"EA",null,{"$f":"IFERROR($C44*$E44, \"\")","v":{"v":0,"d":"$0.00"}}]
["02550-C6-00250","Remove Existing Fire Hydrant",2,"EA",null,{"v":0,"d":"$0.00"}]
["02550-C6-00270","Install New Fire Hydrant (includes Fire Hydrant, Gate Valve with Valve Box and up to 20 LF 6-inch DIP CL-52)",2,"EA",null,{"v":0,"d":"$0.00"}]
["02550-C6-00300","Cut & Cap 12-Inch Water Main",2,"EA",null,{"v":0,"d":"$0.00"}]
["02550-C6-00030","12-Inch Water Main, DIP CL-52, Upto 6' Deep",48,"LF",null,{"v":0,"d":"$0.00"}]
["02550-C6-00540","Abandon Existing Water Main (All sizes and depths)",20,"LF",null,{"v":0,"d":"$0.00"}]
[{"$nulls":4},"SUBTOTAL",{"$f":"SUBTOTAL(109,CC16_Unit_Price_Tab!$F$44:$F$49)","v":{"v":0,"d":"$0.00"}}]
[]
["C7",{"$f":"VLOOKUP(A52,Table_BidItem_CategoryClassification[#All],2,FALSE)","v":"SANITARY SEWER WORK"}]
["MASTER ITEM #","DESCRIPTION","QTY","UNIT","UNIT\nPRICE","TOTAL"]
[{"$nulls":4},"SUBTOTAL",{"v":0,"d":"$0.00"}]
[]
["C8",{"$f":"VLOOKUP(A56,Table_BidItem_CategoryClassification[#All],2,FALSE)","v":"TRAFFIC SIGNAL WORK"}]
["MASTER ITEM #","DESCRIPTION","QTY","UNIT","UNIT\nPRICE","TOTAL"]
["13160-C8-03000","Traffic Signal Cost",1,"LS",null,{"$f":"IFERROR($C58*$E58, \"\")","v":{"v":0,"d":"$0.00"}}]
[{"$nulls":4},"SUBTOTAL",{"$f":"SUBTOTAL(109,CC16_Unit_Price_Tab!$F$58:$F$58)","v":{"v":0,"d":"$0.00"}}]
[]
["C9",{"$f":"VLOOKUP(A61,Table_BidItem_CategoryClassification[#All],2,FALSE)","v":"STREET LIGHTING WORK"}]
["MASTER ITEM #","DESCRIPTION","QTY","UNIT","UNIT\nPRICE","TOTAL"]
["14030-C9-00030","Furnish and Install 2 inch SCH 80 HDPE Direct Bore Conduit (Detail 14030-01)",915,"LF",null,{"$f":"IFERROR($C63*$E63, \"\")","v":{"v":0,"d":"$0.00"}}]
["14040-C9-00180","Furnish and Install Junction Box and Lid LARGE (Detail 14040-02)",2,"EA",null,{"v":0,"d":"$0.00"}]
["14050-C9-00260","Furnish & Install # 6 TNNH Copper Cable",5000,"LF",null,{"v":0,"d":"$0.00"}]
["14060-C9-00290","Install Streetlight Pole Foundation (Detail 14060-01)",11,"EA",null,{"v":0,"d":"$0.00"}]
["14112-C9-00910","Decorative Post-Top Aluminum Streetlight Pole with Single Post-Top Luminaire per Arlington Lighting Standard 14112-01",11,"EA",null,{"v":0,"d":"$0.00"}]
[{"$nulls":4},"SUBTOTAL",{"$f":"SUBTOTAL(109,CC16_Unit_Price_Tab!$F$63:$F$67)","v":{"v":0,"d":"$0.00"}}]
[]
["C10",{"$f":"VLOOKUP(A70,Table_BidItem_CategoryClassification[#All],2,FALSE)","v":"PAVEMENT MARKING AND SIGNAGE WORK"}]
["MASTER ITEM #","DESCRIPTION","QTY","UNIT","UNIT\nPRICE","TOTAL"]
["02900-C10-00040","Eighteen (18) Inch Transverse Markings",240,"LF",null,{"$f":"IFERROR($C72*$E72, \"\")","v":{"v":0,"d":"$0.00"}}]
["02900-C10-00050","Twenty Four (24) Inch Transverse Markings, Note: Used For Continental (Ladder) Crosswalk",1005,"LF",null,{"v":0,"d":"$0.00"}]
["02900-C10-00070","Four (4) Inch Longitudinal Solid Line",1565,"LF",null,{"v":0,"d":"$0.00"}]
["02900-C10-00080","Four (4) Inch Longitudinal Skip Line (Ten (10) Foot Line/Thirty (30) Foot Spacing), Note: Forty (40) LF Consists of Ten (10) LF of Marking and Thirty (30) LF of Space",975,"LF",null,{"v":0,"d":"$0.00"}]
["02900-C10-00160","Six (6) Inch Longitudinal Skip Line (Two (2) Foot Line/ Four (4) Foot Spacing), Note: Twelve (12) LF Consists of Two (2) LF of Marking and Four (4) LF of Space",955,"LF",null,{"v":0,"d":"$0.00"}]
["02900-C10-00170","Twelve (12) Inch Yellow Longitudinal Centerline, Two - Four (4) Inch Yellow Lines with Four (4) Inch Separation",310,"LF",null,{"v":0,"d":"$0.00"}]
["02900-C10-00240","Single Arrows",13,"EA",null,{"v":0,"d":"$0.00"}]
["02900-C10-00250","Combination Arrows",5,"EA",null,{"v":0,"d":"$0.00"}]
["02900-C10-00290","Standard Bicycle Symbols (MUTCD, Chapter 9C, Figure 9C-3), \"Bike Symbol\", \"Helmeted Bicyclist Symbol\"",2,"EA",null,{"v":0,"d":"$0.00"}]
["02900-C10-00300","Standard Bicycle Symbols (MUTCD, Chapter 9C, Figure 9C-9), \"Shared Lane Marking\"",8,"EA",null,{"v":0,"d":"$0.00"}]
["02900-C10-00320","Six (6) Foot Bicycle Lane Arrow (Only for Multi-Use or Bikes Opposing Traffic)",2,"EA",null,{"v":0,"d":"$0.00"}]
["02619-C10-00410","Traffic Control Sign (Typical Stop, Yield, No Parking, Speed Limit, or Similar)",8,"EA",null,{"v":0,"d":"$0.00"}]
["02619-C10-00420","Traffic Control Sign (Typical Stop, Yield, No Parking, Speed Limit, or Similar), Relocate with Existing Post",6,"EA",null,{"v":0,"d":"$0.00"}]
["02900-C10-SP001","Eight (8) Inch Yellow Gore Markings, Ten (10) Foot Spacing @ 45 Degree",370,"LF",null,{"v":0,"d":"$0.00"}]
["02900-C10-SP002","Detectable Directional Wayfinding Centerline",112,"LF",null,{"v":0,"d":"$0.00"}]
[{"$nulls":4},"SUBTOTAL",{"$f":"SUBTOTAL(109,CC16_Unit_Price_Tab!$F$72:$F$86)","v":{"v":0,"d":"$0.00"}}]
[]
["C11",{"$f":"VLOOKUP(A89,Table_BidItem_CategoryClassification[#All],2,FALSE)","v":"LANDSCAPE AND HARDSCAPE RESTORATION WORK"}]
["MASTER ITEM #","DESCRIPTION","QTY","UNIT","UNIT\nPRICE","TOTAL"]
["02800-C11-00030","Topsoil for Street Trees, Purchased Mixture (per Arlington County DPR Specification)",214,"CY",null,{"$f":"IFERROR($C91*$E91, \"\")","v":{"v":0,"d":"$0.00"}}]
["02801-C11-00060","Sod, Tall Fescue/Bluegrass Mixture",385,"SY",null,{"$f":"IFERROR($C92*$E92, \"\")","v":{"v":0,"d":"$0.00"}}]
["02800-C11-00500","Tree/Stump Removal - Class A. Remove and Dispose, Up to 6\" DBH to 12\" DBH (Diameter at Breast Height)",3,"EA",null,{"$f":"IFERROR($C93*$E93, \"\")","v":{"v":0,"d":"$0.00"}}]
["02800-C11-00603","Trees, Deciduous - 2.0 to 2.5\" caliper",15,"EA",null,{"$f":"IFERROR($C94*$E94, \"\")","v":{"v":0,"d":"$0.00"}}]
[{"$nulls":4},"SUBTOTAL",{"$f":"SUBTOTAL(109,CC16_Unit_Price_Tab!$F$91:$F$94)","v":{"v":0,"d":"$0.00"}}]
[]
["C12",{"$f":"VLOOKUP(A97,Table_BidItem_CategoryClassification[#All],2,FALSE)","v":"BUS STOP SHELTER AND FURNISHINGS"}]
["MASTER ITEM #","DESCRIPTION","QTY","UNIT","UNIT\nPRICE","TOTAL"]
[{"$nulls":4},"SUBTOTAL",{"v":0,"d":"$0.00"}]
[]
["C13",{"$f":"VLOOKUP(A101,Table_BidItem_CategoryClassification[#All],2,FALSE)","v":"EROSION AND SEDIMENT CONTROL WORK"}]
["MASTER ITEM #","DESCRIPTION","QTY","UNIT","UNIT\nPRICE","TOTAL"]
[{"$nulls":4},"SUBTOTAL",{"v":0,"d":"$0.00"}]
[]
["C15",{"$f":"VLOOKUP(A105,Table_BidItem_CategoryClassification[#All],2,FALSE)","v":"UNLISTED WORK"}]
["MASTER ITEM #","DESCRIPTION","QTY","UNIT","UNIT\nPRICE","TOTAL"]
[{"$nulls":4},"SUBTOTAL",{"v":0,"d":"$0.00"}]
[]
["C16",{"$f":"VLOOKUP(A109,Table_BidItem_CategoryClassification[#All],2,FALSE)","v":"MOT AND RE-MOBILIZATION WORK"}]
["MASTER ITEM #","DESCRIPTION","QTY","UNIT","UNIT\nPRICE","TOTAL"]
[{"$nulls":4},"SUBTOTAL",{"v":0,"d":"$0.00"}]
[]
["C17",{"$f":"VLOOKUP(A113,Table_BidItem_CategoryClassification[#All],2,FALSE)","v":"STORMWATER WORK"}]
["MASTER ITEM #","DESCRIPTION","QTY","UNIT","UNIT\nPRICE","TOTAL"]
[{"$nulls":4},"SUBTOTAL",{"v":0,"d":"$0.00"}]
[]
["C18",{"$f":"VLOOKUP(A117,Table_BidItem_CategoryClassification[#All],2,FALSE)","v":"NON COUNTY UTILITIES"}]
["MASTER ITEM #","DESCRIPTION","QTY","UNIT","UNIT\nPRICE","TOTAL"]
[{"$nulls":4},"SUBTOTAL",{"v":0,"d":"$0.00"}]
[]
[]
[{"$nulls":4}," CONTRACT TOTAL (EXCLUDING PERCENTAGE ITEMS)",{"$f":"SUMIF(E:E,\"SUBTOTAL\",F:F)","v":{"v":0,"d":"$0.00"}}]
[]
["PCT",{"$f":"VLOOKUP(A124,Table_BidItem_CategoryClassification[#All],2,FALSE)","v":"PERCENTAGE LINE ITEMS"}]
["MASTER ITEM #","DESCRIPTION","QTY","UNIT","UNIT\nPRICE","TOTAL"]
["01500-C13-10000","Temporary Erosion and Sediment Controls",1,"LS",null,{"$f":"IFERROR($C126*$E126, \"\")","v":{"v":0,"d":"$0.00"}}]
["01000-C16-00010","Maintenance of Traffic (MOT)",1,"LS",null,{"$f":"IFERROR($C127*$E127, \"\")","v":{"v":0,"d":"$0.00"}}]
["01000-C16-00030","Mobilization and De-Mobilization",1,"LS",null,{"$f":"IFERROR($C128*$E128, \"\")","v":{"v":0,"d":"$0.00"}}]
["01500-SA-00200","SWPPP Administration",1,"LS",null,{"$f":"IFERROR($C129*$E129, \"\")","v":{"v":0,"d":"$0.00"}}]
[{"$nulls":4},"PERCENTAGE LINE ITEMS SUBTOTAL",{"$f":"SUBTOTAL(109,CC16_Unit_Price_Tab!$F$126:$F$129)","v":{"v":0,"d":"$0.00"}}]
[]
[]
[]
[{"$nulls":4},"PROJECT TOTAL :",{"$f":"$F$130+F122","v":{"v":0,"d":"$0.00"}}]

{"sheet":"SP_Info_Biditem_Category","index":3,"n_rows":24,"n_cols":5,"rows_kept":24,"hidden":true}
["CategoryNum","Category_Title","Item Type","Path","CategorySort"]
["C1","GENERAL EARTH WORK","Item","sites/extranet/EngineeringBureau/Lists/Info_BidItems_CategoryClassification",1]
["C2","CONCRETE WORK","Item","sites/extranet/EngineeringBureau/Lists/Info_BidItems_CategoryClassification",2]
["C3","ASPHALT WORK","Item","sites/extranet/EngineeringBureau/Lists/Info_BidItems_CategoryClassification",3]
["C4","STORM SEWER UTILITY WORK","Item","sites/extranet/EngineeringBureau/Lists/Info_BidItems_CategoryClassification",4]
["C5","GUARDRAIL","Item","sites/extranet/EngineeringBureau/Lists/Info_BidItems_CategoryClassification",5]
["C6","WATERMAIN WORK","Item","sites/extranet/EngineeringBureau/Lists/Info_BidItems_CategoryClassification",6]
["C7","SANITARY SEWER WORK","Item","sites/extranet/EngineeringBureau/Lists/Info_BidItems_CategoryClassification",7]
["C8","TRAFFIC SIGNAL WORK","Item","sites/extranet/EngineeringBureau/Lists/Info_BidItems_CategoryClassification",8]
["C9","STREET LIGHTING WORK","Item","sites/extranet/EngineeringBureau/Lists/Info_BidItems_CategoryClassification",9]
["C10","PAVEMENT MARKING AND SIGNAGE WORK","Item","sites/extranet/EngineeringBureau/Lists/Info_BidItems_CategoryClassification",10]
["C11","LANDSCAPE AND HARDSCAPE RESTORATION WORK","Item","sites/extranet/EngineeringBureau/Lists/Info_BidItems_CategoryClassification",11]
["C12","BUS STOP SHELTER AND FURNISHINGS","Item","sites/extranet/EngineeringBureau/Lists/Info_BidItems_CategoryClassification",12]
["C13","EROSION AND SEDIMENT CONTROL WORK","Item","sites/extranet/EngineeringBureau/Lists/Info_BidItems_CategoryClassification",13]
["C14","MATERIAL TESTING WORK","Item","sites/extranet/EngineeringBureau/Lists/Info_BidItems_CategoryClassification",14]
["C15","UNLISTED WORK","Item","sites/extranet/EngineeringBureau/Lists/Info_BidItems_CategoryClassification",15]
["C16","MOT AND RE-MOBILIZATION WORK","Item","sites/extranet/EngineeringBureau/Lists/Info_BidItems_CategoryClassification",16]
["M1","MAINTENANCE WORK","Item","sites/extranet/EngineeringBureau/Lists/Info_BidItems_CategoryClassification",101]
["M2","MOT WORK","Item","sites/extranet/EngineeringBureau/Lists/Info_BidItems_CategoryClassification",102]
["C17","STORMWATER WORK","Item","sites/extranet/EngineeringBureau/Lists/Info_BidItems_CategoryClassification",17]
["RM","REMOVED ITEM","Item","sites/extranet/EngineeringBureau/Lists/Info_BidItems_CategoryClassification",1001]
["C18","NON COUNTY UTILITIES","Item","sites/extranet/EngineeringBureau/Lists/Info_BidItems_CategoryClassification",18]
["PCT","PERCENTAGE LINE ITEMS","Item","sites/extranet/EngineeringBureau/Lists/Info_BidItems_CategoryClassification",500]
["VF","VDOT FEE","Item","sites/extranet/EngineeringBureau/Lists/Info_BidItems_CategoryClassification",600]